[Event "Live Chess"]
[Site "Chess.com"]
[Date "2023.05.20"]
[Round "-"]
[White "LiamClery2020"]
[Black "manthanit"]
[Result "1-0"]
[WhiteElo "2071"]
[BlackElo "1005"]
[TimeControl "300"]
[EndTime "14:42:49 PDT"]
[Termination "LiamClery2020 won by resignation"]

1. e4 {[%clk 0:04:59.3]} 1... e6 {[%clk 0:04:59.5]} 2. d4 {[%clk 0:04:57.2]}
2... d5 {[%clk 0:04:59.1]} 3. Nd2 {[%clk 0:04:56.8]} 3... Nf6 {[%clk 0:04:56.1]}
4. e5 {[%clk 0:04:55.6]} 4... Nfd7 {[%clk 0:04:45.1]} 5. Ngf3 {[%clk 0:04:55.5]}
5... c5 {[%clk 0:04:43.6]} 6. c3 {[%clk 0:04:54.8]} 6... a6 {[%clk 0:04:41.7]}
7. Bd3 {[%clk 0:04:53.7]} 7... b5 {[%clk 0:04:39.9]} 8. O-O {[%clk 0:04:50.1]}
8... cxd4 {[%clk 0:04:39]} 9. cxd4 {[%clk 0:04:50]} 9... Bb4 {[%clk 0:04:34.9]}
10. Re1 {[%clk 0:04:48.5]} 10... Nc6 {[%clk 0:04:30.7]} 11. Nb3 {[%clk
0:04:47.5]} 11... Bxe1 {[%clk 0:04:23.7]} 12. Qxe1 {[%clk 0:04:46]} 12... Qb6
{[%clk 0:04:16.3]} 13. Be3 {[%clk 0:04:43.5]} 13... Bb7 {[%clk 0:04:14.1]} 14.
Rc1 {[%clk 0:04:41.9]} 14... a5 {[%clk 0:03:58.9]} 15. Nc5 {[%clk 0:04:35.1]}
15... Rb8 {[%clk 0:03:49.1]} 16. Ng5 {[%clk 0:04:22.3]} 16... Nxc5 {[%clk
0:03:43.9]} 17. Rxc5 {[%clk 0:04:20.7]} 17... Nb4 {[%clk 0:03:29]} 18. Bxb5+
{[%clk 0:04:18.6]} 18... Bc6 {[%clk 0:03:20.3]} 19. Bxc6+ {[%clk 0:04:14.9]}
19... Nxc6 {[%clk 0:03:19]} 20. Qc3 {[%clk 0:04:11.8]} 20... Rc8 {[%clk
0:03:10.8]} 21. h3 {[%clk 0:04:07.5]} 21... O-O {[%clk 0:03:08.5]} 22. Qc2
{[%clk 0:04:05.9]} 22... g6 {[%clk 0:03:05.9]} 23. h4 {[%clk 0:04:03.9]} 23...
Nb4 {[%clk 0:03:00.9]} 24. Qb1 {[%clk 0:03:57.1]} 24... Rxc5 {[%clk 0:02:58]}
25. dxc5 {[%clk 0:03:56.9]} 25... Qb5 {[%clk 0:02:52.1]} 26. h5 {[%clk
0:03:55.5]} 26... Rc8 {[%clk 0:02:45.6]} 27. a3 {[%clk 0:03:51.2]} 27... Nd3
{[%clk 0:02:44.2]} 28. hxg6 {[%clk 0:03:44.2]} 28... hxg6 {[%clk 0:02:42.9]} 29.
Qd1 {[%clk 0:03:42.5]} 29... Qxb2 {[%clk 0:02:08.2]} 30. Qxd3 {[%clk 0:03:39.1]}
30... Qa1+ {[%clk 0:02:03]} 31. Kh2 {[%clk 0:03:37.6]} 31... Qxe5+ {[%clk
0:02:02]} 32. g3 {[%clk 0:03:31.3]} 32... f6 {[%clk 0:01:53.7]} 33. Qxg6+ {[%clk
0:03:30.5]} 1-0

[Event "Live Chess"]
[Site "Chess.com"]
[Date "2023.05.20"]
[Round "-"]
[White "smoggyrabbit"]
[Black "terrub10"]
[Result "1-0"]
[WhiteElo "1706"]
[BlackElo "570"]
[TimeControl "300"]
[EndTime "14:42:55 PDT"]
[Termination "smoggyrabbit won by checkmate"]

1. d4 {[%clk 0:04:59.3]} 1... d5 {[%clk 0:04:56.8]} 2. Nf3 {[%clk 0:04:58.6]}
2... Bg4 {[%clk 0:04:53.9]} 3. Ne5 {[%clk 0:04:57]} 3... Bh5 {[%clk 0:04:43.6]}
4. Qd3 {[%clk 0:04:56.1]} 4... Nc6 {[%clk 0:04:32.1]} 5. Qh3 {[%clk 0:04:53]}
5... Nxe5 {[%clk 0:04:28.3]} 6. dxe5 {[%clk 0:04:50.7]} 6... Qc8 {[%clk
0:04:18.3]} 7. Qxh5 {[%clk 0:04:48.9]} 7... g6 {[%clk 0:04:16]} 8. Qf3 {[%clk
0:04:46.1]} 8... h5 {[%clk 0:04:13.7]} 9. Qxd5 {[%clk 0:04:44.5]} 9... c6 {[%clk
0:04:09.6]} 10. Qd4 {[%clk 0:04:41.6]} 10... c5 {[%clk 0:04:08.1]} 11. Qd3
{[%clk 0:04:30.4]} 11... c4 {[%clk 0:04:06.4]} 12. Qd4 {[%clk 0:04:29.7]} 12...
e6 {[%clk 0:04:02.6]} 13. e3 {[%clk 0:04:28.4]} 13... Bc5 {[%clk 0:03:58.4]} 14.
Qxc4 {[%clk 0:04:24.7]} 14... Rb8 {[%clk 0:03:52.9]} 15. Qb5+ {[%clk 0:04:22.4]}
15... Kd8 {[%clk 0:03:45.8]} 16. Nc3 {[%clk 0:04:18.5]} 16... a6 {[%clk
0:03:43.7]} 17. Qd3+ {[%clk 0:04:14.2]} 17... Ke7 {[%clk 0:03:40.8]} 18. Ne4
{[%clk 0:04:10.9]} 18... f5 {[%clk 0:03:33.4]} 19. exf6+ {[%clk 0:04:05.5]}
19... Kf7 {[%clk 0:03:23.2]} 20. b3 {[%clk 0:04:00]} 20... Nxf6 {[%clk 0:03:22]}
21. Nxf6 {[%clk 0:03:56.7]} 21... Kxf6 {[%clk 0:03:20.8]} 22. Bb2+ {[%clk
0:03:55.8]} 22... e5 {[%clk 0:03:18.5]} 23. f4 {[%clk 0:03:53]} 23... Bd4 {[%clk
0:03:08.5]} 24. exd4 {[%clk 0:03:48.4]} 24... exd4 {[%clk 0:03:06.4]} 25. Bxd4+
{[%clk 0:03:47.1]} 25... Ke6 {[%clk 0:03:04.1]} 26. Qxg6+ {[%clk 0:03:44.8]}
26... Ke7 {[%clk 0:03:00.5]} 27. Qf6+ {[%clk 0:03:29]} 27... Kd7 {[%clk
0:02:57.1]} 28. O-O-O {[%clk 0:03:19.3]} 28... Re8 {[%clk 0:02:50.3]} 29. Be5#
{[%clk 0:03:18.2]} 1-0

[Event "Live Chess"]
[Site "Chess.com"]
[Date "2023.05.20"]
[Round "-"]
[White "EdenHazard8"]
[Black "toog"]
[Result "0-1"]
[WhiteElo "2055"]
[BlackElo "2620"]
[TimeControl "300"]
[EndTime "14:43:12 PDT"]
[Termination "toog won by resignation"]

1. d4 {[%clk 0:04:49.7]} 1... Nf6 {[%clk 0:04:54.3]} 2. Bg5 {[%clk 0:04:47.9]}
2... Ne4 {[%clk 0:04:52.2]} 3. Bf4 {[%clk 0:04:45.8]} 3... Nc6 {[%clk
0:04:51.6]} 4. e3 {[%clk 0:04:40.6]} 4... g5 {[%clk 0:04:47]} 5. Bg3 {[%clk
0:04:37]} 5... h5 {[%clk 0:04:45.8]} 6. Bd3 {[%clk 0:04:24.6]} 6... h4 {[%clk
0:04:43.9]} 7. Bxc7 {[%clk 0:04:18.1]} 7... Nxf2 {[%clk 0:04:42.5]} 8. Kxf2
{[%clk 0:04:17.3]} 8... Qxc7 {[%clk 0:04:40.8]} 9. Nh3 {[%clk 0:04:15.2]} 9...
Bh6 {[%clk 0:04:35.1]} 10. Rf1 {[%clk 0:04:12.8]} 10... Qxh2 {[%clk 0:04:31.8]}
11. Qh5 {[%clk 0:04:09.7]} 11... d6 {[%clk 0:04:21.8]} 12. Ke1 {[%clk
0:04:02.2]} 12... Qxg2 {[%clk 0:04:18.4]} 13. Qxf7+ {[%clk 0:04:00.3]} 13... Kd8
{[%clk 0:04:16.4]} 14. Nf2 {[%clk 0:03:56.7]} 14... h3 {[%clk 0:04:05.5]} 15.
Nd2 {[%clk 0:03:34.8]} 15... g4 {[%clk 0:04:00.6]} 16. Be4 {[%clk 0:03:12.3]}
16... Qg3 {[%clk 0:03:55.1]} 17. Bf5 {[%clk 0:02:57.7]} 17... Qxe3+ {[%clk
0:03:52.1]} 0-1

[Event "Live Chess"]
[Site "Chess.com"]
[Date "2023.05.20"]
[Round "-"]
[White "JohanKjeldahl"]
[Black "fso"]
[Result "1/2-1/2"]
[WhiteElo "1854"]
[BlackElo "2232"]
[TimeControl "300"]
[EndTime "14:43:13 PDT"]
[Termination "Game drawn by stalemate"]

1. c4 {[%clk 0:04:57.2]} 1... Nf6 {[%clk 0:04:58.5]} 2. Nc3 {[%clk 0:04:56.1]}
2... g6 {[%clk 0:04:55.8]} 3. d4 {[%clk 0:04:53.5]} 3... d5 {[%clk 0:04:50.9]}
4. cxd5 {[%clk 0:04:49.7]} 4... Nxd5 {[%clk 0:04:46.3]} 5. e4 {[%clk 0:04:48.4]}
5... Nxc3 {[%clk 0:04:45.2]} 6. bxc3 {[%clk 0:04:47.5]} 6... Bg7 {[%clk
0:04:45.1]} 7. Bc4 {[%clk 0:04:45.9]} 7... c5 {[%clk 0:04:43.4]} 8. Be3 {[%clk
0:04:44.5]} 8... O-O {[%clk 0:04:41.8]} 9. Ne2 {[%clk 0:04:41.8]} 9... Qa5
{[%clk 0:04:40.1]} 10. Qd2 {[%clk 0:04:40.3]} 10... Nc6 {[%clk 0:04:36.4]} 11.
Rd1 {[%clk 0:04:29.9]} 11... Rd8 {[%clk 0:04:33.7]} 12. O-O {[%clk 0:04:24.7]}
12... cxd4 {[%clk 0:04:29.5]} 13. cxd4 {[%clk 0:04:23.6]} 13... Qxd2 {[%clk
0:04:27.6]} 14. Rxd2 {[%clk 0:04:22.8]} 14... Na5 {[%clk 0:04:11.9]} 15. Bb5
{[%clk 0:04:13.4]} 15... b6 {[%clk 0:04:07.5]} 16. Rfd1 {[%clk 0:04:08.2]} 16...
e6 {[%clk 0:03:55.3]} 17. f3 {[%clk 0:03:59]} 17... Bb7 {[%clk 0:03:52.8]} 18.
Kf2 {[%clk 0:03:48.3]} 18... Rac8 {[%clk 0:03:51]} 19. d5 {[%clk 0:03:35.7]}
19... exd5 {[%clk 0:03:48.4]} 20. exd5 {[%clk 0:03:32.8]} 20... Nc4 {[%clk
0:03:29.5]} 21. Bxc4 {[%clk 0:03:29.2]} 21... Rxc4 {[%clk 0:03:29.4]} 22. d6
{[%clk 0:03:23.7]} 22... Rd7 {[%clk 0:03:17.6]} 23. Bg5 {[%clk 0:03:10]} 23...
Bf8 {[%clk 0:03:11.1]} 24. Ng3 {[%clk 0:03:03.4]} 24... f5 {[%clk 0:03:00]} 25.
h4 {[%clk 0:03:00.1]} 25... Rc6 {[%clk 0:02:57]} 26. Bf4 {[%clk 0:02:55.3]}
26... Kf7 {[%clk 0:02:36.8]} 27. h5 {[%clk 0:02:51.7]} 27... Ba6 {[%clk
0:02:27]} 28. hxg6+ {[%clk 0:02:49.5]} 28... hxg6 {[%clk 0:02:26]} 29. Be5
{[%clk 0:02:17.3]} 29... Bc4 {[%clk 0:02:12.8]} 30. a3 {[%clk 0:02:02.3]} 30...
b5 {[%clk 0:02:11.5]} 31. Ke3 {[%clk 0:01:52.4]} 31... a5 {[%clk 0:02:08.6]} 32.
Nh1 {[%clk 0:01:48.9]} 32... Bb3 {[%clk 0:02:03.2]} 33. Rb1 {[%clk 0:01:41]}
33... a4 {[%clk 0:02:02.1]} 34. Nf2 {[%clk 0:01:34.3]} 34... Bxd6 {[%clk
0:01:56.3]} 35. Bxd6 {[%clk 0:01:32.2]} 35... Rcxd6 {[%clk 0:01:55.1]} 36. Rxd6
{[%clk 0:01:31]} 36... Rxd6 {[%clk 0:01:55]} 37. Rc1 {[%clk 0:01:17.9]} 37...
Bc4 {[%clk 0:01:36.3]} 38. Rh1 {[%clk 0:01:08.5]} 38... Kf6 {[%clk 0:01:33.6]}
39. Rh8 {[%clk 0:01:06.5]} 39... g5 {[%clk 0:01:28.7]} 40. Rh6+ {[%clk
0:01:03.3]} 40... Ke5 {[%clk 0:01:24.8]} 41. Rxd6 {[%clk 0:00:59.1]} 41... Kxd6
{[%clk 0:01:24.7]} 42. Kd4 {[%clk 0:00:57.2]} 42... Bf1 {[%clk 0:01:20.3]} 43.
g3 {[%clk 0:00:56.1]} 43... Kc6 {[%clk 0:01:13.8]} 44. g4 {[%clk 0:00:48.1]}
44... fxg4 {[%clk 0:01:05.9]} 45. Nxg4 {[%clk 0:00:45.8]} 45... Be2 {[%clk
0:01:03.2]} 46. Ne5+ {[%clk 0:00:42.6]} 46... Kb6 {[%clk 0:01:02.4]} 47. Nf7
{[%clk 0:00:36.1]} 47... Bxf3 {[%clk 0:00:52.6]} 48. Nxg5 {[%clk 0:00:35.1]}
48... Bg2 {[%clk 0:00:51]} 49. Kc3 {[%clk 0:00:33.6]} 49... Bc6 {[%clk 0:00:47]}
50. Ne6 {[%clk 0:00:31.9]} 50... Bd5 {[%clk 0:00:44.7]} 51. Nd4 {[%clk
0:00:29.3]} 51... Kc5 {[%clk 0:00:44.2]} 52. Nxb5 {[%clk 0:00:26.6]} 52... Kxb5
{[%clk 0:00:42.6]} 53. Kb2 {[%clk 0:00:25.9]} 53... Kc4 {[%clk 0:00:41.5]} 54.
Ka1 {[%clk 0:00:25]} 54... Kb3 {[%clk 0:00:39.8]} 55. Kb1 {[%clk 0:00:23.7]}
55... Kxa3 {[%clk 0:00:38.9]} 56. Ka1 {[%clk 0:00:23]} 56... Kb3 {[%clk
0:00:36.4]} 57. Kb1 {[%clk 0:00:22.2]} 57... a3 {[%clk 0:00:35.4]} 58. Ka1
{[%clk 0:00:21.4]} 58... Be6 {[%clk 0:00:32.4]} 59. Kb1 {[%clk 0:00:20]} 59...
Bf7 {[%clk 0:00:31.8]} 60. Ka1 {[%clk 0:00:19.1]} 60... Bg8 {[%clk 0:00:31.7]}
61. Kb1 {[%clk 0:00:18.3]} 61... Kb4 {[%clk 0:00:31.6]} 62. Ka1 {[%clk
0:00:17.6]} 62... Ka4 {[%clk 0:00:31.5]} 63. Kb1 {[%clk 0:00:16.9]} 63... Bh7+
{[%clk 0:00:31.4]} 64. Ka1 {[%clk 0:00:16.2]} 64... Bg6 {[%clk 0:00:31.2]} 65.
Ka2 {[%clk 0:00:14.5]} 65... Bf5 {[%clk 0:00:31.1]} 66. Ka1 {[%clk 0:00:13.7]}
66... Be4 {[%clk 0:00:31]} 67. Ka2 {[%clk 0:00:13]} 67... Bd3 {[%clk 0:00:30.9]}
68. Ka1 {[%clk 0:00:12.5]} 68... Bc4 {[%clk 0:00:30.8]} 69. Kb1 {[%clk 0:00:11]}
69... Kb3 {[%clk 0:00:30.7]} 70. Ka1 {[%clk 0:00:10.1]} 70... Kb4 {[%clk
0:00:30.6]} 71. Kb1 {[%clk 0:00:09]} 71... Kb3 {[%clk 0:00:30.5]} 72. Ka1 {[%clk
0:00:08.2]} 72... Kc2 {[%clk 0:00:25.5]} 1/2-1/2

[Event "Live Chess"]
[Site "Chess.com"]
[Date "2023.05.20"]
[Round "-"]
[White "LL220284LL"]
[Black "toxic_rabbit"]
[Result "1-0"]
[WhiteElo "2375"]
[BlackElo "1998"]
[TimeControl "300"]
[EndTime "14:43:13 PDT"]
[Termination "LL220284LL won by resignation"]

1. e4 {[%clk 0:04:58.8]} 1... e6 {[%clk 0:04:59.3]} 2. d4 {[%clk 0:04:57.2]}
2... d5 {[%clk 0:04:58.7]} 3. Bd3 {[%clk 0:04:55.3]} 3... c5 {[%clk 0:04:57]} 4.
exd5 {[%clk 0:04:52.8]} 4... exd5 {[%clk 0:04:56.2]} 5. Nf3 {[%clk 0:04:50]}
5... Nf6 {[%clk 0:04:55.7]} 6. O-O {[%clk 0:04:48.9]} 6... Be7 {[%clk
0:04:54.8]} 7. dxc5 {[%clk 0:04:47.2]} 7... O-O {[%clk 0:04:53.6]} 8. Nbd2
{[%clk 0:04:45.2]} 8... Bxc5 {[%clk 0:04:52.5]} 9. Nb3 {[%clk 0:04:44.8]} 9...
Bb6 {[%clk 0:04:51.7]} 10. Bg5 {[%clk 0:04:44]} 10... Bg4 {[%clk 0:04:48.7]} 11.
h3 {[%clk 0:04:42.6]} 11... Bh5 {[%clk 0:04:47.6]} 12. Re1 {[%clk 0:04:41.3]}
12... Nbd7 {[%clk 0:04:46.8]} 13. Be2 {[%clk 0:04:40]} 13... Qc7 {[%clk
0:04:39.7]} 14. c3 {[%clk 0:04:34.8]} 14... Ne4 {[%clk 0:04:38.2]} 15. Bh4
{[%clk 0:04:28.3]} 15... Ndf6 {[%clk 0:04:30.9]} 16. Nfd4 {[%clk 0:04:26.6]}
16... Bxe2 {[%clk 0:04:28.2]} 17. Rxe2 {[%clk 0:04:26.5]} 17... a5 {[%clk
0:04:25]} 18. Nd2 {[%clk 0:04:22.3]} 18... Nxd2 {[%clk 0:04:23.3]} 19. Qxd2
{[%clk 0:04:20.4]} 19... Ne4 {[%clk 0:04:22.1]} 20. Qd3 {[%clk 0:04:16.7]} 20...
Rfe8 {[%clk 0:04:17.2]} 21. Rae1 {[%clk 0:04:15.2]} 21... a4 {[%clk 0:04:01.1]}
22. Bg3 {[%clk 0:04:06]} 22... Nxg3 {[%clk 0:04:00]} 23. Rxe8+ {[%clk
0:04:03.2]} 1-0

[Event "Live Chess"]
[Site "Chess.com"]
[Date "2023.05.20"]
[Round "-"]
[White "chrisbradgate"]
[Black "McSlash1"]
[Result "0-1"]
[WhiteElo "861"]
[BlackElo "2049"]
[TimeControl "300"]
[EndTime "14:43:15 PDT"]
[Termination "McSlash1 won by checkmate"]

1. d4 {[%clk 0:04:58]} 1... Nf6 {[%clk 0:04:59]} 2. Bf4 {[%clk 0:04:57.1]} 2...
g6 {[%clk 0:04:57.9]} 3. e3 {[%clk 0:04:56.2]} 3... Bg7 {[%clk 0:04:55.4]} 4. c3
{[%clk 0:04:54]} 4... O-O {[%clk 0:04:55.3]} 5. Nd2 {[%clk 0:04:50.1]} 5... d5
{[%clk 0:04:55.2]} 6. Qc2 {[%clk 0:04:48]} 6... c5 {[%clk 0:04:55.1]} 7. O-O-O
{[%clk 0:04:44]} 7... Nc6 {[%clk 0:04:52.6]} 8. dxc5 {[%clk 0:04:41.1]} 8... e5
{[%clk 0:04:48.8]} 9. Bg3 {[%clk 0:04:38.7]} 9... Qe7 {[%clk 0:04:47.3]} 10. Nb3
{[%clk 0:04:34.6]} 10... b6 {[%clk 0:04:44.6]} 11. cxb6 {[%clk 0:04:33]} 11...
axb6 {[%clk 0:04:44.5]} 12. a3 {[%clk 0:04:30.1]} 12... Ne4 {[%clk 0:04:36]} 13.
Ne2 {[%clk 0:04:20.4]} 13... Bf5 {[%clk 0:04:32.2]} 14. Rd3 {[%clk 0:03:38.4]}
14... Rfc8 {[%clk 0:04:26.1]} 15. f3 {[%clk 0:03:29]} 15... Nxg3 {[%clk
0:04:25]} 16. hxg3 {[%clk 0:03:27.8]} 16... Bxd3 {[%clk 0:04:23.9]} 17. Qxd3
{[%clk 0:03:27]} 17... e4 {[%clk 0:04:23.6]} 18. fxe4 {[%clk 0:03:21.8]} 18...
dxe4 {[%clk 0:04:23.5]} 19. Qc2 {[%clk 0:03:19.2]} 19... Ne5 {[%clk 0:04:22.7]}
20. Ned4 {[%clk 0:03:08.3]} 20... Nc4 {[%clk 0:04:13]} 21. Bxc4 {[%clk
0:03:05.8]} 21... Rxc4 {[%clk 0:04:11.5]} 22. Rd1 {[%clk 0:02:49.7]} 22... Rd8
{[%clk 0:04:09.6]} 23. Nb5 {[%clk 0:02:39.9]} 23... Bh6 {[%clk 0:03:59.4]} 24.
Kb1 {[%clk 0:02:34.3]} 24... Bxe3 {[%clk 0:03:55.9]} 25. Rxd8+ {[%clk
0:02:32.1]} 25... Qxd8 {[%clk 0:03:54.4]} 26. Nc1 {[%clk 0:02:15.7]} 26... Qd2
{[%clk 0:03:49.7]} 27. Qxd2 {[%clk 0:02:13.6]} 27... Bxd2 {[%clk 0:03:49.6]} 28.
Nb3 {[%clk 0:02:10.2]} 28... Bh6 {[%clk 0:03:45.6]} 29. Nd6 {[%clk 0:02:06.7]}
29... Rc6 {[%clk 0:03:38.7]} 30. Nxe4 {[%clk 0:02:02.5]} 30... Re6 {[%clk
0:03:38]} 31. Nf2 {[%clk 0:01:56.6]} 31... Re2 {[%clk 0:03:36.6]} 32. Ng4 {[%clk
0:01:51.6]} 32... Bg7 {[%clk 0:03:36.3]} 33. Nc1 {[%clk 0:01:40.9]} 33... Rxg2
{[%clk 0:03:35]} 34. Ne3 {[%clk 0:01:38.4]} 34... Rxg3 {[%clk 0:03:33.8]} 35.
Nf1 {[%clk 0:01:35.5]} 35... Rg1 {[%clk 0:03:32.1]} 36. Nd2 {[%clk 0:01:30.7]}
36... Bh6 {[%clk 0:03:31.6]} 37. Kc2 {[%clk 0:01:28.5]} 37... Rg2 {[%clk
0:03:26.2]} 38. Nb3 {[%clk 0:01:20.7]} 38... Bxd2 {[%clk 0:03:24.7]} 39. Nxd2
{[%clk 0:01:19.7]} 39... h5 {[%clk 0:03:24.6]} 40. Kd1 {[%clk 0:01:16]} 40... h4
{[%clk 0:03:24]} 41. Ke1 {[%clk 0:01:13.9]} 41... h3 {[%clk 0:03:23.1]} 42. Nf1
{[%clk 0:01:12.8]} 42... Rxb2 {[%clk 0:03:21.9]} 43. Kd1 {[%clk 0:01:06.3]}
43... Rb1+ {[%clk 0:03:19]} 44. Ke2 {[%clk 0:01:05.3]} 44... g5 {[%clk
0:03:16.2]} 45. Kf2 {[%clk 0:01:03.1]} 45... Rb2+ {[%clk 0:03:14.1]} 46. Kg1
{[%clk 0:01:00]} 46... g4 {[%clk 0:03:13.3]} 47. Ng3 {[%clk 0:00:53.3]} 47...
Rg2+ {[%clk 0:03:10.4]} 48. Kh1 {[%clk 0:00:45.1]} 48... Rxg3 {[%clk 0:03:10.3]}
49. Kh2 {[%clk 0:00:43.4]} 49... Rxc3 {[%clk 0:03:10.2]} 50. Kh1 {[%clk
0:00:39.5]} 50... Rxa3 {[%clk 0:03:10.1]} 51. Kh2 {[%clk 0:00:38.7]} 51... f6
{[%clk 0:03:09.5]} 52. Kh1 {[%clk 0:00:36.4]} 52... g3 {[%clk 0:03:08.9]} 53.
Kg1 {[%clk 0:00:34.1]} 53... Ra1# {[%clk 0:03:08.8]} 0-1

[Event "Live Chess"]
[Site "Chess.com"]
[Date "2023.05.20"]
[Round "-"]
[White "RamsayFlayer"]
[Black "stevochess11"]
[Result "1-0"]
[WhiteElo "1983"]
[BlackElo "1756"]
[TimeControl "300"]
[EndTime "14:43:37 PDT"]
[Termination "RamsayFlayer won by resignation"]

1. e4 {[%clk 0:04:58.8]} 1... c5 {[%clk 0:04:58]} 2. c3 {[%clk 0:04:57.5]} 2...
d5 {[%clk 0:04:56.6]} 3. exd5 {[%clk 0:04:56.2]} 3... Qxd5 {[%clk 0:04:55.7]} 4.
d4 {[%clk 0:04:56.1]} 4... cxd4 {[%clk 0:04:54.6]} 5. cxd4 {[%clk 0:04:56]} 5...
Nc6 {[%clk 0:04:53.7]} 6. Nf3 {[%clk 0:04:55.3]} 6... Nf6 {[%clk 0:04:53]} 7.
Nc3 {[%clk 0:04:54.4]} 7... Qa5 {[%clk 0:04:51.2]} 8. Bb5 {[%clk 0:04:47.3]}
8... Bg4 {[%clk 0:04:48.6]} 9. h3 {[%clk 0:04:42.7]} 9... Bxf3 {[%clk 0:04:39]}
10. Qxf3 {[%clk 0:04:40.9]} 10... a6 {[%clk 0:04:34.4]} 11. Bxc6+ {[%clk
0:04:38.6]} 11... bxc6 {[%clk 0:04:34.3]} 12. Qxc6+ {[%clk 0:04:37]} 12... Nd7
{[%clk 0:04:32.3]} 13. Qxa8+ {[%clk 0:04:35.4]} 13... Qd8 {[%clk 0:04:32.2]} 14.
Qxd8+ {[%clk 0:04:33.7]} 1-0

[Event "Live Chess"]
[Site "Chess.com"]
[Date "2023.05.20"]
[Round "-"]
[White "OSmith06"]
[Black "Stanbad1"]
[Result "0-1"]
[WhiteElo "1664"]
[BlackElo "2392"]
[TimeControl "300"]
[EndTime "14:43:42 PDT"]
[Termination "Stanbad1 won by resignation"]

1. e4 {[%clk 0:04:58.7]} 1... e6 {[%clk 0:04:58]} 2. d4 {[%clk 0:04:57.4]} 2...
d5 {[%clk 0:04:54.6]} 3. Nd2 {[%clk 0:04:56.4]} 3... Nf6 {[%clk 0:04:53.2]} 4.
e5 {[%clk 0:04:55.1]} 4... Nfd7 {[%clk 0:04:50]} 5. Bd3 {[%clk 0:04:54.3]} 5...
c5 {[%clk 0:04:49.9]} 6. c3 {[%clk 0:04:53]} 6... Nc6 {[%clk 0:04:49.5]} 7. Ne2
{[%clk 0:04:49.9]} 7... cxd4 {[%clk 0:04:48.5]} 8. cxd4 {[%clk 0:04:48.2]} 8...
f6 {[%clk 0:04:47.3]} 9. exf6 {[%clk 0:04:46.9]} 9... Nxf6 {[%clk 0:04:37.2]}
10. Nf3 {[%clk 0:04:45.3]} 10... Bd6 {[%clk 0:04:35.9]} 11. O-O {[%clk
0:04:43.7]} 11... O-O {[%clk 0:04:34.9]} 12. Bf4 {[%clk 0:04:40.5]} 12... Bxf4
{[%clk 0:04:33.7]} 13. Nxf4 {[%clk 0:04:40.4]} 13... Ne4 {[%clk 0:04:33.4]} 14.
Ne2 {[%clk 0:04:26.1]} 14... Rxf3 {[%clk 0:04:29.9]} 15. gxf3 {[%clk 0:04:26]}
15... Ng5 {[%clk 0:04:29.3]} 16. Ng3 {[%clk 0:04:20.7]} 16... Nxd4 {[%clk
0:04:25.9]} 17. Be2 {[%clk 0:04:06]} 17... Nxe2+ {[%clk 0:04:21]} 18. Qxe2
{[%clk 0:04:05.9]} 18... Nh3+ {[%clk 0:04:19.4]} 19. Kg2 {[%clk 0:04:02.2]}
19... Nf4+ {[%clk 0:04:18]} 0-1

[Event "Live Chess"]
[Site "Chess.com"]
[Date "2023.05.20"]
[Round "-"]
[White "ExIsambard"]
[Black "gregor1903"]
[Result "1-0"]
[WhiteElo "1972"]
[BlackElo "1560"]
[TimeControl "300"]
[EndTime "14:43:56 PDT"]
[Termination "ExIsambard won by resignation"]

1. d4 {[%clk 0:04:58.4]} 1... Nf6 {[%clk 0:04:58.1]} 2. Nf3 {[%clk 0:04:57.1]}
2... g6 {[%clk 0:04:56.9]} 3. Bg5 {[%clk 0:04:57]} 3... Ne4 {[%clk 0:04:54.2]}
4. h4 {[%clk 0:04:55.2]} 4... Nxg5 {[%clk 0:04:49]} 5. hxg5 {[%clk 0:04:54.1]}
5... Bg7 {[%clk 0:04:47.8]} 6. e3 {[%clk 0:04:53.7]} 6... d5 {[%clk 0:04:36.9]}
7. Bd3 {[%clk 0:04:52.7]} 7... Nc6 {[%clk 0:04:32.7]} 8. c3 {[%clk 0:04:51.7]}
8... e5 {[%clk 0:04:30.4]} 9. dxe5 {[%clk 0:04:40.9]} 9... Nxe5 {[%clk
0:04:26.7]} 10. Nxe5 {[%clk 0:04:39.8]} 10... Bxe5 {[%clk 0:04:25.1]} 11. f4
{[%clk 0:04:35.5]} 11... Bg7 {[%clk 0:04:18.8]} 12. Nd2 {[%clk 0:04:26.5]} 12...
Qe7 {[%clk 0:03:53.5]} 13. Qf3 {[%clk 0:04:24.1]} 13... Be6 {[%clk 0:03:37.3]}
14. O-O-O {[%clk 0:04:22.3]} 14... O-O-O {[%clk 0:03:34.5]} 15. Kb1 {[%clk
0:04:10]} 15... Qc5 {[%clk 0:03:06.3]} 16. Nb3 {[%clk 0:04:02]} 16... Qb6 {[%clk
0:03:04.1]} 17. Rhe1 {[%clk 0:03:54.1]} 17... h5 {[%clk 0:02:59.7]} 18. Nd4
{[%clk 0:03:39.6]} 18... Bg4 {[%clk 0:02:54.2]} 19. Qf2 {[%clk 0:03:31.9]} 19...
Bxd1 {[%clk 0:02:52.4]} 20. Rxd1 {[%clk 0:03:31.6]} 20... Rhe8 {[%clk
0:02:40.1]} 21. f5 {[%clk 0:03:29.9]} 21... Be5 {[%clk 0:02:32.5]} 22. fxg6
{[%clk 0:03:25.4]} 22... fxg6 {[%clk 0:02:32.4]} 23. Bxg6 {[%clk 0:03:24.4]}
23... Rf8 {[%clk 0:02:28.7]} 24. Qh4 {[%clk 0:03:21.1]} 24... Qxg6+ {[%clk
0:02:18]} 25. Ka1 {[%clk 0:03:07.5]} 25... c6 {[%clk 0:02:03.5]} 26. Qh3+ {[%clk
0:03:05.2]} 26... Kb8 {[%clk 0:02:00.3]} 27. Ne6 {[%clk 0:03:04]} 27... a6
{[%clk 0:01:28.2]} 28. Nxd8 {[%clk 0:03:01.1]} 28... Rxd8 {[%clk 0:01:27.1]} 29.
g4 {[%clk 0:02:57]} 29... Qxg5 {[%clk 0:01:15.6]} 30. gxh5 {[%clk 0:02:41.4]}
30... Rh8 {[%clk 0:01:14.2]} 31. Rh1 {[%clk 0:02:39.3]} 31... Bd6 {[%clk
0:01:07.6]} 32. a3 {[%clk 0:02:37.9]} 32... Bc5 {[%clk 0:01:06.2]} 33. Qh2+
{[%clk 0:02:30.9]} 33... Ka7 {[%clk 0:01:02.9]} 34. h6 {[%clk 0:02:18.4]} 34...
Bxe3 {[%clk 0:00:59.4]} 35. h7 {[%clk 0:02:17.4]} 35... Bf4 {[%clk 0:00:50.1]}
36. Qh3 {[%clk 0:02:15.6]} 36... Qg3 {[%clk 0:00:45.9]} 37. Qd7 {[%clk
0:02:09.6]} 37... Be5 {[%clk 0:00:34]} 38. Qe7 {[%clk 0:01:42.4]} 38... Bg7
{[%clk 0:00:31.2]} 39. Qc5+ {[%clk 0:01:32.5]} 39... Ka8 {[%clk 0:00:27.6]} 40.
Qe7 {[%clk 0:01:05]} 40... Qg6 {[%clk 0:00:23.6]} 41. Rf1 {[%clk 0:01:01.3]}
41... Qe8 {[%clk 0:00:14]} 42. Qxg7 {[%clk 0:00:58.4]} 1-0